[Event "Orsha A 2021"]
[Site "Orsha"]
[Date "2021.04.09"]
[Round "7.8"]
[White "Spizharny, Mikhail"]
[Black "Bugaev, Anton"]
[Result "1/2-1/2"]
[ECO "A34"]
[WhiteElo "2153"]
[BlackElo "1748"]
[Annotator "NA"]
[PlyCount "132"]
[EventDate "2021.04.06"]
[EventType "swiss"]
[EventCountry "BLR"]
[SourceTitle "playchess.com"]
[Source "ChessBase"]
[SourceQuality "1"]
[TimeControl "5400+30"]

1. e4 {[%emt 0:00:00]} c5 {[%emt 0:00:00]} 2. Nf3 {[%emt 0:00:00]} e6 {[%emt 0:00:00]} 3. c4 {[%emt 0:00:01]} Nc6 {[%emt 0:00:07]} 4. Be2 {[%emt 0:00:34]} Nf6 {[%emt 0:01:14]} 5. Nc3 {[%emt 0:00:14]} d5 {[%emt 0:01:57]} 6. exd5 {[%emt 0:00:08]} exd5 {[%emt 0:00:06]} 7. d4 {[%emt 0:00:04]} cxd4 {[%emt 0:08:55] seems to push 7...Be6 aside.} 8. Nxd4 {[%emt 0:00:16]} dxc4 {[%emt 0:06:09]} 9. Nxc6 {[%emt 0:00:37]} Qxd1+ {[%emt 0:00:23]} 10. Nxd1 {[%emt 0:01:15]} bxc6 {[%emt 0:00:29]} 11. Bxc4 {[%emt 0:00:17]} Bb4+ {[%emt 0:02:52]} 12. Bd2 {[%emt 0:02:37]} Bxd2+ {[%emt 0:05:06]} 13. Kxd2 {[%emt 0:00:01]} O-O {[%emt 0:01:31]} 14. Ne3 {[%emt 0:03:31]} Rd8+ {[%emt 0:02:02]} 15. Ke2 {[%emt 0:00:50]} Rb8 {[%emt 0:01:41]} 16. b3 {[%emt 0:01:00]} Ne4 {[%emt 0:01:47] [#]} 17. Rhc1 $146 {[%emt 0:10:13]} ({Predecessor:} 17. Nd1 Bf5 18. f3 Nd2 19. Ne3 Nxc4 20. Nxc4 Bd3+ 21. Ke3 Bxc4 22. bxc4 Rb2 23. Rad1 {½-½ (70) Berke,A (2171)-Turk,T (1991) Sibenik 2016}) 17... Rd2+ {[%emt 0:16:15]} 18. Ke1 $1 {[%emt 0:00:01]} Rd6 {[%emt 0:08:20]} 19. Rd1 {[%emt 0:03:40]} Kf8 {[%emt 0:03:24]} 20. f3 $18 {[%emt 0:00:50]} Rxd1+ {[%emt 0:00:10]} 21. Rxd1 {[%emt 0:00:02]} Nf6 {[%emt 0:00:28] [#]} 22. Rd8+ $1 {[%emt 0:04:01]} Ke7 {[%emt 0:00:45]} 23. Rh8 {[%emt 0:00:16]} g6 {[%emt 0:07:27]} 24. Ba6 {[%emt 0:00:42]} Ne8 {[%emt 0:01:56]} 25. Bxc8 {[%emt 0:00:11]} Rxc8 {[%emt 0:00:06]} 26. Rxh7 {[%emt 0:00:04]} Nd6 {[%emt 0:03:08]} 27. Rh4 {[%emt 0:00:57]} Kf6 {[%emt 0:00:40]} 28. Ra4 {[%emt 0:00:42]} Nb5 {[%emt 0:02:56]} 29. Ra6 {[%emt 0:01:52]} Ke6 {[%emt 0:02:29]} 30. Kd2 {[%emt 0:02:59]} Rc7 {[%emt 0:03:17]} 31. Kc2 {[%emt 0:01:27]} Ke5 {[%emt 0:01:42]} 32. Ra4 {[%emt 0:00:48]} f5 {[%emt 0:02:42]} 33. Rh4 {[%emt 0:01:01]} g5 {[%emt 0:03:09]} 34. Nc4+ {[%emt 0:01:19]} Kd5 {[%emt 0:00:29]} 35. Rh6 {[%emt 0:02:08]} Re7 {[%emt 0:02:46]} 36. Kd3 {[%emt 0:03:05]} Kc5 {[%emt 0:01:46]} 37. Rg6 {[%emt 0:01:30]} Rd7+ {[%emt 0:00:55]} 38. Kc2 {[%emt 0:02:08]} Nd4+ {[%emt 0:00:33]} 39. Kc1 {[%emt 0:07:53]} Re7 {[%emt 0:01:21]} 40. Rxg5 {[%emt 0:01:05]} Re2 {[%emt 0:02:59]} 41. Kd1 {[%emt 0:04:30]} Rxa2 {[%emt 0:01:03]} 42. h4 {[%emt 0:01:27]} Nxb3 {[%emt 0:01:41]} 43. Ne3 {[%emt 0:00:38]} Kd4 {[%emt 0:01:40]} 44. Nxf5+ {[%emt 0:00:18]} Kd3 {[%emt 0:00:13]} 45. Ke1 {[%emt 0:00:05]} c5 {[%emt 0:01:01]} 46. Nd6 {[%emt 0:01:03]} Re2+ {[%emt 0:01:07]} 47. Kf1 {[%emt 0:00:18]} Nd2+ {[%emt 0:00:26]} 48. Kg1 {[%emt 0:00:01]} Re6 {[%emt 0:01:32]} 49. Nb7 {[%emt 0:01:18]} Re1+ {[%emt 0:00:20]} 50. Kh2 {[%emt 0:00:35]} c4 {[%emt 0:00:14]} 51. Rd5+ {[%emt 0:02:52]} Kc2 {[%emt 0:01:20]} 52. h5 {[%emt 0:01:18]} c3 {[%emt 0:00:34]} 53. Nd6 {[%emt 0:01:09]} Kb2 {[%emt 0:00:46]} 54. Nb5 {[%emt 0:00:12]} Nf1+ {[%emt 0:00:17]} 55. Kh3 {[%emt 0:03:53]} c2 {[%emt 0:00:12]} 56. Rc5 {[%emt 0:00:14]} c1=Q {[%emt 0:00:21]} 57. Rxc1 {[%emt 0:00:02]} Rxc1 {[%emt 0:00:21]} 58. Nxa7 {[%emt 0:00:25]} Ne3 {[%emt 0:00:37]} 59. g4 {[%emt 0:00:17]} Kc3 {[%emt 0:00:50]} 60. Nc6 {[%emt 0:01:16]} Kc4 {[%emt 0:00:21]} 61. Ne7 {[%emt 0:01:36]} Kc5 {[%emt 0:00:27]} 62. Kh4 {[%emt 0:02:09]} Kd6 {[%emt 0:00:20]} 63. Ng6 {[%emt 0:00:08]} Ke6 {[%emt 0:00:45]} 64. Kg5 {[%emt 0:02:25]} Rc5+ {[%emt 0:00:11]} 65. Kf4 {[%emt 0:04:59]} Nd5+ {[%emt 0:01:49]} 66. Kg5 {[%emt 0:29:33]} Ne3+ {[%emt 0:00:30]} 1/2-1/2

[Event "Orsha A 2021"]
[Site "Orsha"]
[Date "2021.04.11"]
[Round "9.3"]
[White "Zarubitski, Viachaslau"]
[Black "Siniauski, Artsiom"]
[Result "*"]
[ECO "A00"]
[WhiteElo "2456"]
[BlackElo "2277"]
[Annotator "RC"]
[PlyCount "53"]
[EventDate "2021.04.06"]
[EventType "swiss"]
[EventCountry "BLR"]
[SourceTitle "playchess.com"]
[Source "ChessBase"]
[SourceQuality "1"]
[TimeControl "5400+30"]

1. g3 {[%emt 0:01:57]} e6 {[%emt 0:04:08]} 2. Bg2 {[%emt 1:29:03]} c5 {[%emt 0:00:19]} 3. d3 {[%emt 1:29:25]} Nc6 {[%emt 0:00:17]} 4. Nd2 {[%emt 0:00:59]} d6 {[%emt 0:01:28]} 5. c3 {[%emt 0:02:08]} g6 {[%emt 0:01:28]} 6. a4 {[%emt 0:02:25]} Bg7 {[%emt 0:01:13]} 7. a5 {[%emt 0:00:29]} Nge7 {[%emt 1:24:37]} 8. Qa4 {[%emt 0:01:59]} Rb8 {[%emt 0:02:48]} 9. Qf4 {[%emt 0:16:27]} e5 {[%emt 0:08:38]} 10. Qa4 {[%emt 0:00:47]} O-O {[%emt 0:02:23]} 11. e4 {[%emt 1:07:57]} b5 {[%emt 0:03:54]} 12. axb6 {[%emt 0:00:12]} axb6 {[%emt 0:00:08]} 13. Ngf3 {[%emt 0:00:36]} Bd7 {[%emt 0:04:30]} 14. Qc2 {[%emt 1:05:54]} b5 {[%emt 0:01:22]} 15. Nf1 {[%emt 0:00:32]} Ra8 {[%emt 0:06:33]} 16. Rxa8 {[%emt 0:00:15]} Qxa8 {[%emt 0:00:04]} 17. Ne3 {[%emt 0:00:09]} Rc8 {[%emt 0:03:26]} 18. Nd2 {[%emt 0:00:22]} Be6 {[%emt 0:03:26]} 19. O-O {[%emt 0:01:43]} Qa2 {[%emt 0:02:35]} 20. f4 {[%emt 0:02:31]} Bh6 {[%emt 0:05:17]} 21. Qd1 {[%emt 0:05:04]} c4 {[%emt 0:07:22]} 22. dxc4 {[%emt 0:01:30]} Qa7 {[%emt 0:00:38]} 23. Qe2 {[%emt 0:10:01]} bxc4 {[%emt 0:01:49]} 24. Kh1 {[%emt 0:00:13]} Na5 {[%emt 0:03:39]} 25. Ng4 {[%emt 0:04:59]} Bxg4 {[%emt 0:09:05]} 26. Qxg4 {[%emt 0:00:42]} Rd8 {[%emt 0:04:20]} 27. Qh4 {[%emt 0:43:42]} *

[Event "Orsha A 2021"]
[Site "Orsha"]
[Date "2021.04.11"]
[Round "9.4"]
[White "Apryshko, Gleb"]
[Black "Vashchilov, Sergey"]
[Result "*"]
[ECO "C07"]
[WhiteElo "2391"]
[BlackElo "2172"]
[Annotator "RC"]
[PlyCount "45"]
[EventDate "2021.04.06"]
[EventType "swiss"]
[EventCountry "BLR"]
[SourceTitle "playchess.com"]
[Source "ChessBase"]
[SourceQuality "1"]
[TimeControl "5400+30"]

1. e4 {[%emt 0:08:22]} e6 {[%emt 0:00:00]} 2. d4 {[%emt 0:00:06]} d5 {[%emt 1:31:00]} 3. Nd2 {[%emt 0:00:03]} c5 {[%emt 0:00:40]} 4. exd5 {[%emt 0:00:10]} Qxd5 {[%emt 0:00:20]} 5. Ngf3 {[%emt 0:00:05]} cxd4 {[%emt 0:00:31]} 6. Bc4 {[%emt 0:01:41]} Qd8 {[%emt 0:00:35]} 7. O-O {[%emt 0:00:13]} Nc6 {[%emt 0:00:15]} 8. Nb3 {[%emt 1:23:20]} a6 {[%emt 0:00:17]} 9. a4 {[%emt 0:00:06]} Be7 {[%emt 1:31:52]} 10. Qe2 {[%emt 0:16:57]} Bf6 {[%emt 0:08:45]} 11. Rd1 {[%emt 0:00:17]} Nge7 {[%emt 0:01:04]} 12. c3 {[%emt 0:00:30]} O-O {[%emt 0:03:12]} 13. Nbxd4 {[%emt 0:01:02]} Nxd4 {[%emt 0:00:59]} 14. Nxd4 {[%emt 0:00:11]} Qc7 {[%emt 0:00:24]} 15. a5 {[%emt 0:08:04]} e5 {[%emt 0:05:28]} 16. Nc2 {[%emt 0:19:07]} h5 {[%emt 0:24:09]} 17. Be3 {[%emt 0:03:58]} Bg4 {[%emt 0:01:56]} 18. f3 {[%emt 0:00:18]} Bf5 {[%emt 0:00:24]} 19. Bb6 {[%emt 0:01:02]} Qc6 {[%emt 0:03:52]} 20. Nb4 {[%emt 0:00:46]} Qc8 {[%emt 0:00:18]} 21. Nd5 {[%emt 0:12:31]} Nxd5 22. Bxd5 {[%emt 0:00:01]} h4 {[%emt 0:15:15]} 23. Qe3 {[%emt 0:03:55]} *